[Event "Late Titled Tuesday Blitz February 8 2022"]
[White "Stearman, Josiah"]
[Black "Kopylov, Alexander A."]
[WhiteFideId "2062496"]
[BlackFideId "4164857"]
[WhiteElo "2546"]
[BlackElo "2804"]
[Result "1/2-1/2"]
[Round "02"]
[TimeControl "180+1"]
[Date "2022.02.09"]
[WhiteClock "0:00:18"]
[BlackClock "0:00:36"]

1. e4 {[%clk 0:02:59]}  c6 {[%clk 0:02:59]} 2. Nc3 {[%clk 0:02:58]}  d5 {[%clk 0:02:59]} 3. Nf3 {[%clk 0:02:59]}  dxe4 {[%clk 0:02:59]} 4. Nxe4 {[%clk 0:02:57]}  Nf6 {[%clk 0:02:59]} 5. Qe2 {[%clk 0:02:52]}  Nxe4 {[%clk 0:02:57]} 6. Qxe4 {[%clk 0:02:53]}  Nd7 {[%clk 0:02:57]} 7. d4 {[%clk 0:02:52]}  Nf6 {[%clk 0:02:57]} 8. Qh4 {[%clk 0:02:42]}  Bf5 {[%clk 0:02:50]} 9. c3 {[%clk 0:02:41]}  e6 {[%clk 0:02:48]} 10. Bg5 {[%clk 0:02:41]}  Be7 {[%clk 0:02:48]} 11. Qg3 {[%clk 0:02:40]}  h6 {[%clk 0:02:44]} 12. Bxf6 {[%clk 0:02:37]}  Bxf6 {[%clk 0:02:44]} 13. Ne5 {[%clk 0:02:37]}  Qb6 {[%clk 0:02:38]} 14. Nc4 {[%clk 0:02:27]}  Qd8 {[%clk 0:02:19]} 15. Nd6+ {[%clk 0:02:26]}  Kf8 {[%clk 0:02:19]} 16. Nxf5 {[%clk 0:02:25]}  exf5 {[%clk 0:02:19]} 17. Bd3 {[%clk 0:02:18]}  Qe7+ {[%clk 0:02:16]} 18. Kd2 {[%clk 0:02:18]}  Qd7 {[%clk 0:02:12]} 19. h4 {[%clk 0:02:13]}  h5 {[%clk 0:02:11]} 20. Kc2 {[%clk 0:02:07]}  g6 {[%clk 0:02:08]} 21. Qf4 {[%clk 0:02:03]}  Rd8 {[%clk 0:02:04]} 22. Rad1 {[%clk 0:02:00]}  Qd6 {[%clk 0:02:04]} 23. Qxd6+ {[%clk 0:01:56]}  Rxd6 {[%clk 0:02:05]} 24. g3 {[%clk 0:01:57]}  f4 {[%clk 0:02:02]} 25. gxf4 {[%clk 0:01:57]}  Be7 {[%clk 0:01:53]} 26. f5 {[%clk 0:01:48]}  gxf5 {[%clk 0:01:52]} 27. Rde1 {[%clk 0:01:44]}  Rg8 {[%clk 0:01:51]} 28. Bxf5 {[%clk 0:01:37]}  Rg2 {[%clk 0:01:46]} 29. Re2 {[%clk 0:01:35]}  Rf6 {[%clk 0:01:46]} 30. Bd3 {[%clk 0:01:32]}  Rfxf2 {[%clk 0:01:45]} 31. Kd2 {[%clk 0:01:28]}  Bd6 {[%clk 0:01:26]} 32. Kd1 {[%clk 0:00:49]}  Kg7 {[%clk 0:01:22]} 33. Rxf2 {[%clk 0:00:46]}  Rxf2 {[%clk 0:01:23]} 34. Be2 {[%clk 0:00:47]}  Kh6 {[%clk 0:01:23]} 35. Rh3 {[%clk 0:00:43]}  Rf4 {[%clk 0:01:18]} 36. Bc4 {[%clk 0:00:35]}  Be7 {[%clk 0:01:17]} 37. Ke2 {[%clk 0:00:31]}  f5 {[%clk 0:01:15]} 38. Ke3 {[%clk 0:00:29]}  Rxh4 {[%clk 0:01:11]} 39. Rxh4 {[%clk 0:00:28]}  Bxh4 {[%clk 0:01:12]} 40. d5 {[%clk 0:00:29]}  cxd5 {[%clk 0:01:05]} 41. Bxd5 {[%clk 0:00:30]}  b6 {[%clk 0:01:05]} 42. Kf4 {[%clk 0:00:23]}  Kg6 {[%clk 0:01:05]} 43. Bc6 {[%clk 0:00:19]}  Bg5+ {[%clk 0:01:03]} 44. Kg3 {[%clk 0:00:20]}  Kf6 {[%clk 0:00:58]} 45. a4 {[%clk 0:00:19]}  Ke5 {[%clk 0:00:58]} 46. Be8 {[%clk 0:00:13]}  h4+ {[%clk 0:00:58]} 47. Kh3 {[%clk 0:00:14]}  Ke4 {[%clk 0:00:57]} 48. Bg6 {[%clk 0:00:13]}  Bf6 {[%clk 0:00:55]} 49. Bh7 {[%clk 0:00:07]}  Kf4 {[%clk 0:00:54]} 50. Bg6 {[%clk 0:00:07]}  Kg5 {[%clk 0:00:54]} 51. Be8 {[%clk 0:00:08]}  f4 {[%clk 0:00:52]} 52. Kg2 {[%clk 0:00:07]}  Kg4 {[%clk 0:00:51]} 53. Bd7+ {[%clk 0:00:07]}  Kg5 {[%clk 0:00:51]} 54. Kf3 {[%clk 0:00:07]}  Be5 {[%clk 0:00:52]} 55. Bc8 {[%clk 0:00:07]}  Kf6 {[%clk 0:00:52]} 56. Kg4 {[%clk 0:00:07]}  Bd6 {[%clk 0:00:49]} 57. Kxh4 {[%clk 0:00:07]}  Ke5 {[%clk 0:00:49]} 58. Kg4 {[%clk 0:00:07]}  Ke4 {[%clk 0:00:50]} 59. Bb7+ {[%clk 0:00:07]}  Ke3 {[%clk 0:00:50]} 60. b4 {[%clk 0:00:07]}  Kd3 {[%clk 0:00:49]} 61. a5 {[%clk 0:00:07]}  b5 {[%clk 0:00:47]} 62. Bc6 {[%clk 0:00:04]}  Kc4 {[%clk 0:00:47]} 63. Kf3 {[%clk 0:00:02]}  Be5 {[%clk 0:00:47]} 64. a6 {[%clk 0:00:02]}  Bxc3 {[%clk 0:00:37]} 65. Kxf4 {[%clk 0:00:03]}  Bxb4 {[%clk 0:00:38]} 66. Ke3 {[%clk 0:00:03]}  Bc3 {[%clk 0:00:33]} 67. Ke2 {[%clk 0:00:02]}  b4 {[%clk 0:00:32]} 68. Kd1 {[%clk 0:00:02]}  Kb3 {[%clk 0:00:31]} 69. Bd5+ {[%clk 0:00:02]}  Kb2 {[%clk 0:00:31]} 70. Bc4 {[%clk 0:00:01]}  Bd4 {[%clk 0:00:29]} 71. Bd5 {[%clk 0:00:01]}  Be5 {[%clk 0:00:28]} 72. Bc4 {[%clk 0:00:01]}  Bf4 {[%clk 0:00:29]} 73. Bd5 {[%clk 0:00:02]}  Bg5 {[%clk 0:00:29]} 74. Be6 {[%clk 0:00:03]}  Kc3 {[%clk 0:00:29]} 75. Bf7 {[%clk 0:00:02]}  b3 {[%clk 0:00:29]} 76. Be6 {[%clk 0:00:02]}  Kb2 {[%clk 0:00:28]} 77. Bf7 {[%clk 0:00:02]}  Ka3 {[%clk 0:00:27]} 78. Be6 {[%clk 0:00:02]}  Ka2 {[%clk 0:00:28]} 79. Bf7 {[%clk 0:00:02]}  Bh6 {[%clk 0:00:28]} 80. Be6 {[%clk 0:00:02]}  Kb2 {[%clk 0:00:28]} 81. Bf7 {[%clk 0:00:02]}  Kc3 {[%clk 0:00:29]} 82. Be6 {[%clk 0:00:03]}  b2 {[%clk 0:00:29]} 83. Bf5 {[%clk 0:00:04]}  Kb3 {[%clk 0:00:30]} 84. Be6+ {[%clk 0:00:04]}  Ka3 {[%clk 0:00:30]} 85. Kc2 {[%clk 0:00:04]}  Bg7 {[%clk 0:00:30]} 86. Kb1 {[%clk 0:00:04]}  Kb4 {[%clk 0:00:30]} 87. Bc8 {[%clk 0:00:05]}  Kb5 {[%clk 0:00:31]} 88. Bb7 {[%clk 0:00:06]}  Kb6 {[%clk 0:00:31]} 89. Bc8 {[%clk 0:00:07]}  Bf6 {[%clk 0:00:32]} 90. Bb7 {[%clk 0:00:08]}  Kc7 {[%clk 0:00:32]} 91. Kc2 {[%clk 0:00:09]}  Be5 {[%clk 0:00:33]} 92. Kb1 {[%clk 0:00:09]}  Kb6 {[%clk 0:00:33]} 93. Kc2 {[%clk 0:00:10]}  Kb5 {[%clk 0:00:34]} 94. Kb1 {[%clk 0:00:11]}  Kb4 {[%clk 0:00:34]} 95. Bc8 {[%clk 0:00:12]}  Ka4 {[%clk 0:00:35]} 96. Bb7 {[%clk 0:00:13]}  Ka5 {[%clk 0:00:36]} 97. Bc8 {[%clk 0:00:13]}  Kb6 {[%clk 0:00:36]} 98. Bb7 {[%clk 0:00:14]}  Kc5 {[%clk 0:00:36]} 99. Kc2 {[%clk 0:00:15]}  Bf6 {[%clk 0:00:36]} 100. Kb1 {[%clk 0:00:16]}  Kb6 {[%clk 0:00:36]} 101. Bc8 {[%clk 0:00:16]}  Be5 {[%clk 0:00:35]} 102. Bb7 {[%clk 0:00:16]}  Kb5 {[%clk 0:00:35]} 103. Kc2 {[%clk 0:00:17]}  Kb6 {[%clk 0:00:36]} 104. Kb1 {[%clk 0:00:18]} 1/2-1/2


[Site "https://www.chess.com"]

[Event "Late Titled Tuesday Blitz February 8 2022"]
[White "Urbina Perez, Juan Antonio"]
[Black "Calcada, Lucas Galvan"]
[WhiteFideId "2217368"]
[BlackFideId "22746099"]
[WhiteElo "2192"]
[BlackElo "1402"]
[Result "1/2-1/2"]
[Round "02"]
[TimeControl "180+1"]
[Date "2022.02.09"]
[WhiteClock "0:00:15"]
[BlackClock "0:00:36"]

1. e4 {[%clk 0:03:00]}  c5 {[%clk 0:02:30]} 2. Nf3 {[%clk 0:02:57]}  d6 {[%clk 0:02:30]} 3. Bb5+ {[%clk 0:02:55]}  Nd7 {[%clk 0:02:25]} 4. d4 {[%clk 0:02:54]}  cxd4 {[%clk 0:02:25]} 5. Qxd4 {[%clk 0:02:55]}  e6 {[%clk 0:02:23]} 6. c4 {[%clk 0:02:52]}  a6 {[%clk 0:02:20]} 7. Bxd7+ {[%clk 0:02:52]}  Bxd7 {[%clk 0:02:17]} 8. Nc3 {[%clk 0:02:52]}  Qc7 {[%clk 0:02:12]} 9. b3 {[%clk 0:02:49]}  Nf6 {[%clk 0:02:06]} 10. Bb2 {[%clk 0:02:49]}  Bc6 {[%clk 0:02:04]} 11. O-O {[%clk 0:02:48]}  Rc8 {[%clk 0:02:04]} 12. Rfe1 {[%clk 0:02:48]}  Be7 {[%clk 0:02:03]} 13. Rad1 {[%clk 0:02:27]}  O-O {[%clk 0:02:02]} 14. Nd5 {[%clk 0:02:27]}  exd5 {[%clk 0:01:58]} 15. exd5 {[%clk 0:02:27]}  Be8 {[%clk 0:01:56]} 16. Rd2 {[%clk 0:02:24]}  Bd8 {[%clk 0:01:42]} 17. Rde2 {[%clk 0:02:23]}  Bd7 {[%clk 0:01:38]} 18. Ng5 {[%clk 0:02:18]}  Bf5 {[%clk 0:01:29]} 19. h3 {[%clk 0:02:09]}  Bg6 {[%clk 0:01:10]} 20. g4 {[%clk 0:01:59]}  Qc5 {[%clk 0:01:05]} 21. Qf4 {[%clk 0:01:45]}  b5 {[%clk 0:00:57]} 22. Bd4 {[%clk 0:01:41]}  Qc7 {[%clk 0:00:54]} 23. h4 {[%clk 0:01:41]}  h6 {[%clk 0:00:52]} 24. Nf3 {[%clk 0:01:30]}  bxc4 {[%clk 0:00:51]} 25. bxc4 {[%clk 0:01:28]}  Qd7 {[%clk 0:00:50]} 26. h5 {[%clk 0:01:07]}  Bh7 {[%clk 0:00:49]} 27. g5 {[%clk 0:00:54]}  hxg5 {[%clk 0:00:47]} 28. Nxg5 {[%clk 0:00:53]}  Qg4+ {[%clk 0:00:47]} 29. Qxg4 {[%clk 0:00:53]}  Nxg4 {[%clk 0:00:48]} 30. Ne4 {[%clk 0:00:47]}  Rxc4 {[%clk 0:00:46]} 31. Rd1 {[%clk 0:00:42]}  Bxe4 {[%clk 0:00:45]} 32. Rxe4 {[%clk 0:00:42]}  Nf6 {[%clk 0:00:45]} 33. Rh4 {[%clk 0:00:33]}  Nxd5 {[%clk 0:00:44]} 34. Rg4 {[%clk 0:00:33]}  f5 {[%clk 0:00:43]} 35. Rxg7+ {[%clk 0:00:32]}  Kh8 {[%clk 0:00:43]} 36. Rf7+ {[%clk 0:00:26]}  Kg8 {[%clk 0:00:43]} 37. Rg7+ {[%clk 0:00:23]}  Kh8 {[%clk 0:00:43]} 38. Rf7+ {[%clk 0:00:15]}  Kg8 {[%clk 0:00:36]} 39. Rg7+ {[%clk 0:00:15]} 1/2-1/2


[Site "https://www.chess.com"]

[Event "Late Titled Tuesday Blitz February 8 2022"]
[White "Velikanov, Alexander"]
[Black "Sevian, Samuel"]
[WhiteFideId "2039290"]
[BlackFideId "2040506"]
[WhiteElo "2259"]
[BlackElo "2698"]
[Result "0-1"]
[Round "02"]
[TimeControl "180+1"]
[Date "2022.02.08"]
[WhiteClock "0:00:38"]
[BlackClock "0:01:40"]

1. d4 {[%clk 0:02:58]}  Nf6 {[%clk 0:03:00]} 2. Nf3 {[%clk 0:02:58]}  d5 {[%clk 0:02:59]} 3. c4 {[%clk 0:02:58]}  c6 {[%clk 0:03:00]} 4. Qc2 {[%clk 0:02:58]}  g6 {[%clk 0:02:59]} 5. e3 {[%clk 0:02:47]}  Bf5 {[%clk 0:02:59]} 6. Bd3 {[%clk 0:02:47]}  Bxd3 {[%clk 0:02:59]} 7. Qxd3 {[%clk 0:02:48]}  Bg7 {[%clk 0:02:59]} 8. O-O {[%clk 0:02:48]}  O-O {[%clk 0:02:58]} 9. Nc3 {[%clk 0:02:49]}  c5 {[%clk 0:02:42]} 10. dxc5 {[%clk 0:02:42]}  Na6 {[%clk 0:02:41]} 11. Nxd5 {[%clk 0:02:29]}  Nxc5 {[%clk 0:02:41]} 12. Nxf6+ {[%clk 0:02:22]}  Bxf6 {[%clk 0:02:41]} 13. Qc2 {[%clk 0:02:20]}  Qd3 {[%clk 0:02:40]} 14. Qxd3 {[%clk 0:02:18]}  Nxd3 {[%clk 0:02:41]} 15. Rb1 {[%clk 0:02:18]}  a6 {[%clk 0:02:34]} 16. b3 {[%clk 0:02:15]}  b5 {[%clk 0:02:34]} 17. Bd2 {[%clk 0:02:02]}  Rfc8 {[%clk 0:02:33]} 18. Rfd1 {[%clk 0:01:29]}  bxc4 {[%clk 0:02:32]} 19. bxc4 {[%clk 0:01:30]}  Rxc4 {[%clk 0:02:33]} 20. Ba5 {[%clk 0:01:25]}  Nb2 {[%clk 0:02:26]} 21. Rd2 {[%clk 0:01:25]}  Ra4 {[%clk 0:02:20]} 22. Bc7 {[%clk 0:01:21]}  Nc4 {[%clk 0:02:20]} 23. Re2 {[%clk 0:01:20]}  Rc8 {[%clk 0:02:20]} 24. Bg3 {[%clk 0:01:19]}  Na3 {[%clk 0:02:16]} 25. Rd1 {[%clk 0:01:18]}  Rc2 {[%clk 0:02:15]} 26. Rdd2 {[%clk 0:01:08]}  Rc1+ {[%clk 0:02:14]} 27. Re1 {[%clk 0:01:08]}  Rac4 {[%clk 0:02:10]} 28. h3 {[%clk 0:01:01]}  Rxe1+ {[%clk 0:02:08]} 29. Nxe1 {[%clk 0:01:02]}  Rc1 {[%clk 0:02:09]} 30. f3 {[%clk 0:01:01]}  Bc3 {[%clk 0:02:09]} 31. Re2 {[%clk 0:00:58]}  Nc4 {[%clk 0:01:58]} 32. Kh2 {[%clk 0:00:57]}  Nd2 {[%clk 0:01:57]} 33. Bf2 {[%clk 0:00:51]}  Ra1 {[%clk 0:01:54]} 34. g4 {[%clk 0:00:47]}  Rxa2 {[%clk 0:01:51]} 35. Kg2 {[%clk 0:00:48]}  a5 {[%clk 0:01:42]} 36. e4 {[%clk 0:00:46]}  a4 {[%clk 0:01:41]} 37. Be3 {[%clk 0:00:46]}  a3 {[%clk 0:01:40]} 38. f4 {[%clk 0:00:45]}  Rb2 {[%clk 0:01:39]} 39. Nd3 {[%clk 0:00:42]}  a2 {[%clk 0:01:40]} 40. Nxb2 {[%clk 0:00:38]}  a1=Q {[%clk 0:01:40]} 0-1


[Site "https://www.chess.com"]

[Event "Late Titled Tuesday Blitz February 8 2022"]
[White "Vusatiuk, Vladimir"]
[Black "Daianu, Cristian-Clement"]
[WhiteFideId "14118610"]
[BlackFideId "1208926"]
[WhiteElo "2157"]
[BlackElo "2159"]
[Result "1-0"]
[Round "02"]
[TimeControl "180+1"]
[Date "2022.02.09"]
[WhiteClock "0:01:39"]
[BlackClock "0:01:47"]

1. c4 {[%clk 0:03:00]}  Nf6 {[%clk 0:02:56]} 2. d4 {[%clk 0:02:58]}  g6 {[%clk 0:02:56]} 3. h4 {[%clk 0:02:58]}  d5 {[%clk 0:02:55]} 4. cxd5 {[%clk 0:02:57]}  Nxd5 {[%clk 0:02:54]} 5. h5 {[%clk 0:02:57]}  c5 {[%clk 0:02:53]} 6. e4 {[%clk 0:02:54]}  Nf6 {[%clk 0:02:50]} 7. hxg6 {[%clk 0:02:54]}  fxg6 {[%clk 0:02:48]} 8. e5 {[%clk 0:02:51]}  Nd5 {[%clk 0:02:47]} 9. Bd3 {[%clk 0:02:42]}  Bg7 {[%clk 0:02:46]} 10. Rxh7 {[%clk 0:02:37]}  Rxh7 {[%clk 0:02:44]} 11. Bxg6+ {[%clk 0:02:38]}  Kf8 {[%clk 0:02:40]} 12. Bxh7 {[%clk 0:02:28]}  Qa5+ {[%clk 0:02:23]} 13. Bd2 {[%clk 0:02:25]}  Nb4 {[%clk 0:02:16]} 14. Qb3 {[%clk 0:01:59]}  e6 {[%clk 0:02:04]} 15. dxc5 {[%clk 0:01:49]}  N8c6 {[%clk 0:02:03]} 16. a3 {[%clk 0:01:45]}  Bh6 {[%clk 0:01:47]} 17. Bxh6+ {[%clk 0:01:39]} 1-0


[Site "https://www.chess.com"]

[Event "Late Titled Tuesday Blitz February 8 2022"]
[White "Wieczorek, Oskar"]
[Black "Sarana, Alexey"]
[WhiteFideId "1133950"]
[BlackFideId "24133795"]
[WhiteElo "2319"]
[BlackElo "2665"]
[Result "0-1"]
[Round "02"]
[TimeControl "180+1"]
[Date "2022.02.08"]
[WhiteClock "0:00:02"]
[BlackClock "0:00:13"]

1. e4 {[%clk 0:03:00]}  c5 {[%clk 0:03:00]} 2. Nf3 {[%clk 0:03:01]}  d6 {[%clk 0:03:01]} 3. d4 {[%clk 0:03:01]}  cxd4 {[%clk 0:03:02]} 4. Nxd4 {[%clk 0:03:02]}  Nf6 {[%clk 0:03:02]} 5. Nc3 {[%clk 0:03:03]}  a6 {[%clk 0:03:03]} 6. h4 {[%clk 0:03:03]}  e5 {[%clk 0:03:02]} 7. Nb3 {[%clk 0:03:04]}  Be7 {[%clk 0:03:01]} 8. Bg5 {[%clk 0:03:03]}  Be6 {[%clk 0:03:00]} 9. Bxf6 {[%clk 0:03:03]}  Bxf6 {[%clk 0:03:01]} 10. g3 {[%clk 0:03:03]}  Nc6 {[%clk 0:02:59]} 11. Qd2 {[%clk 0:03:03]}  O-O {[%clk 0:02:56]} 12. O-O-O {[%clk 0:03:03]}  a5 {[%clk 0:02:56]} 13. Qxd6 {[%clk 0:03:00]}  Qb6 {[%clk 0:02:55]} 14. Qc5 {[%clk 0:02:44]}  Qb4 {[%clk 0:02:45]} 15. a3 {[%clk 0:02:31]}  Qxc5 {[%clk 0:02:39]} 16. Nxc5 {[%clk 0:02:31]}  Nd4 {[%clk 0:02:35]} 17. Nxe6 {[%clk 0:02:14]}  fxe6 {[%clk 0:02:35]} 18. Nb5 {[%clk 0:02:09]}  Rac8 {[%clk 0:02:21]} 19. Nxd4 {[%clk 0:02:09]}  exd4 {[%clk 0:02:22]} 20. f4 {[%clk 0:01:36]}  e5 {[%clk 0:02:22]} 21. Bd3 {[%clk 0:01:23]}  Rc5 {[%clk 0:02:20]} 22. f5 {[%clk 0:01:20]}  h5 {[%clk 0:02:10]} 23. Be2 {[%clk 0:01:02]}  Rfc8 {[%clk 0:02:09]} 24. Rd2 {[%clk 0:01:02]}  b5 {[%clk 0:02:08]} 25. Bxh5 {[%clk 0:00:56]}  b4 {[%clk 0:02:07]} 26. axb4 {[%clk 0:00:56]}  axb4 {[%clk 0:02:08]} 27. Kd1 {[%clk 0:00:13]}  b3 {[%clk 0:02:05]} 28. Rhh2 {[%clk 0:00:12]}  Bd8 {[%clk 0:01:59]} 29. g4 {[%clk 0:00:05]}  Ba5 {[%clk 0:01:52]} 30. Rdg2 {[%clk 0:00:06]}  Bb4 {[%clk 0:01:21]} 31. g5 {[%clk 0:00:06]}  Ra8 {[%clk 0:01:22]} 32. cxb3 {[%clk 0:00:03]}  Ra1+ {[%clk 0:01:22]} 33. Ke2 {[%clk 0:00:03]}  Re1+ {[%clk 0:01:21]} 34. Kf3 {[%clk 0:00:03]}  Re3+ {[%clk 0:01:21]} 35. Kg4 {[%clk 0:00:03]}  Rxe4+ {[%clk 0:01:22]} 36. Kh3 {[%clk 0:00:04]}  d3 {[%clk 0:00:56]} 37. Rg3 {[%clk 0:00:03]}  Rd4 {[%clk 0:00:56]} 38. Bd1 {[%clk 0:00:02]}  Rc1 {[%clk 0:00:55]} 39. Rh1 {[%clk 0:00:02]}  e4 {[%clk 0:00:54]} 40. Rg4 {[%clk 0:00:03]}  d2 {[%clk 0:00:42]} 41. h5 {[%clk 0:00:03]}  Bd6 {[%clk 0:00:36]} 42. g6 {[%clk 0:00:03]}  Rd3+ {[%clk 0:00:35]} 43. Kg2 {[%clk 0:00:03]}  Re3 {[%clk 0:00:31]} 44. Kf2 {[%clk 0:00:03]}  Bc5 {[%clk 0:00:29]} 45. Kg2 {[%clk 0:00:03]}  Re1 {[%clk 0:00:29]} 46. f6 {[%clk 0:00:03]}  Rxh1 {[%clk 0:00:18]} 47. f7+ {[%clk 0:00:04]}  Kf8 {[%clk 0:00:18]} 48. Rxe4 {[%clk 0:00:04]}  Rg1+ {[%clk 0:00:18]} 49. Kf3 {[%clk 0:00:04]}  Re1 {[%clk 0:00:18]} 50. Ra4 {[%clk 0:00:04]}  Re3+ {[%clk 0:00:15]} 51. Kf4 {[%clk 0:00:04]}  Re8 {[%clk 0:00:11]} 52. fxe8=Q+ {[%clk 0:00:03]}  Kxe8 {[%clk 0:00:12]} 53. Ra8+ {[%clk 0:00:02]}  Ke7 {[%clk 0:00:12]} 54. Rc8 {[%clk 0:00:02]}  Rxd1 {[%clk 0:00:12]} 55. Rxc5 {[%clk 0:00:02]}  Rf1+ {[%clk 0:00:13]} 0-1


[Site "https://www.chess.com"]

[Event "Late Titled Tuesday Blitz February 8 2022"]
[White "Zhou, Qiyu"]
[Black "Goltsev, Dmitry"]
[WhiteFideId "505161"]
[BlackFideId "24176710"]
[WhiteElo "1925"]
[BlackElo "2273"]
[Result "0-1"]
[Round "02"]
[TimeControl "180+1"]
[Date "2022.02.09"]
[WhiteClock "0:00:02"]
[BlackClock "0:00:07"]

1. e4 {[%clk 0:03:00]}  e6 {[%clk 0:03:00]} 2. d4 {[%clk 0:03:01]}  d5 {[%clk 0:03:01]} 3. Nc3 {[%clk 0:03:01]}  Nf6 {[%clk 0:03:01]} 4. Bg5 {[%clk 0:02:58]}  dxe4 {[%clk 0:03:00]} 5. Nxe4 {[%clk 0:02:58]}  Be7 {[%clk 0:02:58]} 6. Bxf6 {[%clk 0:02:53]}  gxf6 {[%clk 0:02:58]} 7. Nf3 {[%clk 0:02:53]}  f5 {[%clk 0:02:58]} 8. Ng3 {[%clk 0:02:46]}  b6 {[%clk 0:02:57]} 9. Qd2 {[%clk 0:02:46]}  Bb7 {[%clk 0:02:56]} 10. O-O-O {[%clk 0:02:46]}  Nd7 {[%clk 0:02:55]} 11. Bb5 {[%clk 0:02:39]}  c6 {[%clk 0:02:51]} 12. Be2 {[%clk 0:02:37]}  Nf6 {[%clk 0:02:33]} 13. Kb1 {[%clk 0:02:35]}  Qd5 {[%clk 0:02:30]} 14. Ne5 {[%clk 0:02:29]}  Rd8 {[%clk 0:02:20]} 15. Bf3 {[%clk 0:02:27]}  Ne4 {[%clk 0:02:20]} 16. Qf4 {[%clk 0:02:00]}  Bg5 {[%clk 0:02:02]} 17. Qxg5 {[%clk 0:01:58]}  Nxg5 {[%clk 0:02:03]} 18. Bxd5 {[%clk 0:01:58]}  Rxd5 {[%clk 0:02:03]} 19. Rhe1 {[%clk 0:01:44]}  Rg8 {[%clk 0:01:47]} 20. f3 {[%clk 0:01:33]}  h6 {[%clk 0:01:35]} 21. Nh5 {[%clk 0:01:30]}  Ke7 {[%clk 0:01:32]} 22. Nf4 {[%clk 0:01:21]}  Rdd8 {[%clk 0:01:28]} 23. c4 {[%clk 0:01:13]}  Rd6 {[%clk 0:01:19]} 24. Kc2 {[%clk 0:01:02]}  Rgd8 {[%clk 0:01:17]} 25. Ne2 {[%clk 0:01:02]}  c5 {[%clk 0:01:15]} 26. dxc5 {[%clk 0:01:01]}  bxc5 {[%clk 0:01:16]} 27. Rxd6 {[%clk 0:00:57]}  Rxd6 {[%clk 0:01:16]} 28. Nd3 {[%clk 0:00:58]}  Rc6 {[%clk 0:01:08]} 29. Nc3 {[%clk 0:00:53]}  Rc8 {[%clk 0:00:55]} 30. Rd1 {[%clk 0:00:46]}  Nh7 {[%clk 0:00:53]} 31. Na4 {[%clk 0:00:44]}  Rg8 {[%clk 0:00:48]} 32. Rd2 {[%clk 0:00:42]}  Nf6 {[%clk 0:00:43]} 33. Naxc5 {[%clk 0:00:41]}  Ba8 {[%clk 0:00:43]} 34. b4 {[%clk 0:00:36]}  h5 {[%clk 0:00:43]} 35. Kb3 {[%clk 0:00:35]}  h4 {[%clk 0:00:43]} 36. h3 {[%clk 0:00:35]}  Nh5 {[%clk 0:00:43]} 37. Na6 {[%clk 0:00:27]}  Bb7 {[%clk 0:00:38]} 38. Nac5 {[%clk 0:00:25]}  Ba8 {[%clk 0:00:37]} 39. b5 {[%clk 0:00:23]}  Ng3 {[%clk 0:00:36]} 40. Nf4 {[%clk 0:00:18]}  e5 {[%clk 0:00:34]} 41. Nd5+ {[%clk 0:00:17]}  Bxd5 {[%clk 0:00:27]} 42. Rxd5 {[%clk 0:00:18]}  e4 {[%clk 0:00:27]} 43. Rd7+ {[%clk 0:00:17]}  Kf6 {[%clk 0:00:26]} 44. fxe4 {[%clk 0:00:17]}  fxe4 {[%clk 0:00:27]} 45. Rxa7 {[%clk 0:00:10]}  e3 {[%clk 0:00:27]} 46. Rd7 {[%clk 0:00:05]}  Nf5 {[%clk 0:00:23]} 47. Rd1 {[%clk 0:00:04]}  Rxg2 {[%clk 0:00:22]} 48. b6 {[%clk 0:00:04]}  e2 {[%clk 0:00:18]} 49. Re1 {[%clk 0:00:04]}  Nd4+ {[%clk 0:00:11]} 50. Kc3 {[%clk 0:00:01]}  Nf3 {[%clk 0:00:09]} 51. b7 {[%clk 0:00:02]}  Nxe1 {[%clk 0:00:05]} 52. b8=Q {[%clk 0:00:02]}  Nf3 {[%clk 0:00:06]} 53. Qd6+ {[%clk 0:00:02]}  Kg7 {[%clk 0:00:06]} 54. Qe7 {[%clk 0:00:02]}  e1=Q+ {[%clk 0:00:06]} 55. Qxe1 {[%clk 0:00:02]}  Nxe1 {[%clk 0:00:07]} 56. Nd3 {[%clk 0:00:02]} 0-1


[Site "https://www.chess.com"]

[Event "Late Titled Tuesday Blitz February 8 2022"]
[White "Zivkovic, Nemanja"]
[Black "Indjic, Aleksandar"]
[WhiteFideId "942154"]
[BlackFideId "911925"]
[WhiteElo "2388"]
[BlackElo "2616"]
[Result "1-0"]
[Round "02"]
[TimeControl "180+1"]
[Date "2022.02.08"]
[WhiteClock "0:00:13"]
[BlackClock "0:00:02"]

1. e4 {[%clk 0:03:00]}  c5 {[%clk 0:02:57]} 2. Nf3 {[%clk 0:02:56]}  Nc6 {[%clk 0:02:58]} 3. Bb5 {[%clk 0:02:55]}  g6 {[%clk 0:02:54]} 4. c3 {[%clk 0:02:54]}  Nf6 {[%clk 0:02:51]} 5. Qe2 {[%clk 0:02:50]}  Bg7 {[%clk 0:02:51]} 6. O-O {[%clk 0:02:50]}  a6 {[%clk 0:02:45]} 7. Ba4 {[%clk 0:02:21]}  O-O {[%clk 0:02:42]} 8. h3 {[%clk 0:02:17]}  b5 {[%clk 0:02:38]} 9. Bc2 {[%clk 0:02:17]}  d6 {[%clk 0:02:37]} 10. d3 {[%clk 0:02:12]}  Bb7 {[%clk 0:02:34]} 11. Nbd2 {[%clk 0:02:12]}  e5 {[%clk 0:02:31]} 12. a4 {[%clk 0:02:09]}  h6 {[%clk 0:02:26]} 13. Re1 {[%clk 0:02:10]}  Re8 {[%clk 0:02:25]} 14. Nf1 {[%clk 0:02:09]}  d5 {[%clk 0:02:24]} 15. Ng3 {[%clk 0:02:06]}  d4 {[%clk 0:02:21]} 16. cxd4 {[%clk 0:02:03]}  cxd4 {[%clk 0:02:17]} 17. Bd2 {[%clk 0:01:58]}  Qd6 {[%clk 0:02:16]} 18. Bb3 {[%clk 0:01:54]}  Nd7 {[%clk 0:02:03]} 19. Rec1 {[%clk 0:01:42]}  Nc5 {[%clk 0:01:56]} 20. Bd5 {[%clk 0:01:41]}  Nxa4 {[%clk 0:01:54]} 21. Nh4 {[%clk 0:01:20]}  Rac8 {[%clk 0:01:46]} 22. Qg4 {[%clk 0:00:58]}  Re6 {[%clk 0:01:17]} 23. Ngf5 {[%clk 0:00:45]}  gxf5 {[%clk 0:01:06]} 24. Nxf5 {[%clk 0:00:44]}  Qf8 {[%clk 0:01:06]} 25. Bxh6 {[%clk 0:00:40]}  Rxh6 {[%clk 0:00:54]} 26. Nxh6+ {[%clk 0:00:39]}  Kh7 {[%clk 0:00:54]} 27. Nxf7 {[%clk 0:00:29]}  Bh6 {[%clk 0:00:36]} 28. Qf5+ {[%clk 0:00:29]}  Kg7 {[%clk 0:00:34]} 29. Qg4+ {[%clk 0:00:23]}  Kh7 {[%clk 0:00:33]} 30. Rc2 {[%clk 0:00:19]}  Nb6 {[%clk 0:00:25]} 31. Nxh6 {[%clk 0:00:16]}  Qxh6 {[%clk 0:00:15]} 32. Bxc6 {[%clk 0:00:16]}  Bxc6 {[%clk 0:00:14]} 33. Rxa6 {[%clk 0:00:16]}  Bd7 {[%clk 0:00:14]} 34. Qd1 {[%clk 0:00:15]}  Rb8 {[%clk 0:00:13]} 35. Ra7 {[%clk 0:00:14]}  Kg8 {[%clk 0:00:12]} 36. Rcc7 {[%clk 0:00:14]}  Be6 {[%clk 0:00:11]} 37. Qf3 {[%clk 0:00:13]}  Qg6 {[%clk 0:00:09]} 38. Rg7+ {[%clk 0:00:12]}  Qxg7 {[%clk 0:00:09]} 39. Rxg7+ {[%clk 0:00:13]}  Kxg7 {[%clk 0:00:10]} 40. Qg3+ {[%clk 0:00:14]}  Kf6 {[%clk 0:00:11]} 41. f4 {[%clk 0:00:14]}  Nd7 {[%clk 0:00:10]} 42. f5 {[%clk 0:00:13]}  Bb3 {[%clk 0:00:08]} 43. Qg6+ {[%clk 0:00:13]}  Ke7 {[%clk 0:00:08]} 44. Qg7+ {[%clk 0:00:13]}  Kd6 {[%clk 0:00:09]} 45. g4 {[%clk 0:00:14]}  Rc8 {[%clk 0:00:08]} 46. g5 {[%clk 0:00:14]}  Bc2 {[%clk 0:00:08]} 47. g6 {[%clk 0:00:13]}  Bxd3 {[%clk 0:00:09]} 48. f6 {[%clk 0:00:12]}  Bxe4 {[%clk 0:00:09]} 49. f7 {[%clk 0:00:12]}  Rc1+ {[%clk 0:00:08]} 50. Kf2 {[%clk 0:00:13]}  Rc2+ {[%clk 0:00:09]} 51. Kg3 {[%clk 0:00:12]}  Rc8 {[%clk 0:00:07]} 52. h4 {[%clk 0:00:12]}  d3 {[%clk 0:00:07]} 53. Qh6 {[%clk 0:00:12]}  Kd5 {[%clk 0:00:07]} 54. h5 {[%clk 0:00:12]}  Rc2 {[%clk 0:00:02]} 55. g7 {[%clk 0:00:12]}  d2 {[%clk 0:00:02]} 56. g8=Q {[%clk 0:00:12]}  d1=Q {[%clk 0:00:02]} 57. f8=Q+ {[%clk 0:00:13]} 1-0


[Site "https://www.chess.com"]